fUSD/lending_fUSD_20240520
["ID","MTS","AMOUNT","RATE_DAILY","PERIOD"]
[327531754,1716177040334,-360.0,0.00012737,2]
[327531755,1716177040343,-400.0,0.000128,4]
[327531756,1716177040352,-12656.14528773,0.0001285,2]
[327531757,1716177040362,-500.0,0.00012896,2]
[327531758,1716177040371,-400.0,0.000129,4]
[327531759,1716177040381,-640.0,0.00012967,2]
[327531760,1716177040391,-1094.74466072,0.0001298,2]
[327531772,1716177042725,-2000.0,0.0001298,2]
[327531776,1716177042774,-1040.16476904,0.0001298,2]
[327531777,1716177042888,-5882.4050492,0.0001298,2]
[327531778,1716177042898,-1673.26,0.0001298,2]
[327531779,1716177042946,-322.97999998,0.0001298,2]
[327531780,1716177042957,-661.66608519,0.0001298,2]
[327531781,1716177043008,-460.07091854,0.0001298,2]
[327531782,1716177043019,-2306.6388282,0.0001298,2]
[327531790,1716177045751,-485.01997941,0.0001298,2]
[327531791,1716177045763,-1741.4332988,0.0001298,2]
[327531792,1716177045799,-3128.6,0.0001298,2]
[327531793,1716177045812,-13648.99019505,0.0001298,2]
[327531794,1716177045826,-2060.92748132,0.0001298,2]
[327531795,1716177045887,-8321.24884357,0.0001298,2]
[327531796,1716177045899,-9541.89190664,0.0001298,2]
[327531798,1716177376220,1126.44475054,0.0003,120]
[327531799,1716177411228,724.96,0.0003,120]
[327531800,1716177519714,161.99,0.00024329,30]
[327531801,1716177611880,-1272.77486946,0.00010024,2]
[327531802,1716177612052,-200.94949806,0.00010024,2]
[327531803,1716177612073,-1391.67642576,0.00010025,2]
[327531804,1716177612096,-344.46064824,0.00010026,2]
[327531805,1716177612116,-167.89482362,0.00010027,2]
[327531806,1716177612136,-5274.45262389,0.00010027,2]
[327531807,1716177612156,-488.89301669,0.00010028,2]
[327531808,1716177612176,-1245.32000866,0.00010028,2]
[327531809,1716177612196,-438.43,0.00010054,2]
[327531810,1716177621792,-884.06,0.00011567,2]
[327531811,1716177621814,-784.0,0.00011588,2]
[327531812,1716177621842,-170.15,0.00011659,2]
[327531813,1716177621861,-500.0,0.00011659,2]
[327531814,1716177621884,-32932.14,0.00011659,2]
[327531815,1716177621904,-23890.0,0.00011688,2]
[327531816,1716177621927,-751.35143743,0.00011697,2]
[327531817,1716177621947,-10000.0,0.00011706,2]
[327531818,1716177621966,-150.0,0.00011839,2]
[327531819,1716177621986,-633.11,0.0001187,2]
[327531820,1716177622006,-250.0,0.00011943,2]
[327531821,1716177629212,180.19382766,0.00010054,2]
[327531822,1716177631764,549.0409506,0.00010054,2]
[327531823,1716177631960,19730.16017374,0.00010054,2]
[327531824,1716177632312,517.45,0.00011955,2]
[327531825,1716177634942,7518.67413038,0.00010054,2]
[327531826,1716177634982,289.22433229,0.00010054,2]
[327531827,1716177635196,409.74863585,0.00010054,2]
[327531828,1716177637633,-155.0,0.00010054,2]
[327531829,1716177637653,-28199.89,0.00012055,2]
[327531830,1716177637674,-770.90007524,0.00012241,2]
[327531831,1716177637695,-250.0,0.00012294,2]
[327531832,1716177637716,-438.43,0.00012318,2]
[327531833,1716177637737,-150.0,0.00012356,2]
[327531834,1716177637759,-150.0,0.00012356,2]
[327531835,1716177637779,-150.0,0.00012356,2]
[327531836,1716177637799,-150.0,0.000124,2]
[327531837,1716177637819,-150.0,0.000124,2]
[327531838,1716177637839,-194.85,0.00012552,2]
[327531839,1716177637864,-150.0,0.000126,2]
[327531840,1716177637883,-150.0,0.000126,2]
[327531841,1716177637903,-150.0,0.000126,2]
[327531842,1716177637926,-1601.34270501,0.00012745,2]
[327531843,1716177637947,-1959.7012,0.00012799,2]
[327531844,1716177637967,-12656.14528773,0.00012879,2]
[327531845,1716177637987,-1000.0,0.0001288,2]
[327531846,1716177638008,-5598.6863,0.0001288,2]
[327531847,1716177638031,-770.0273,0.0001288,2]
[327531848,1716177638052,-386.86299974,0.00012889,2]
[327531849,1716177638073,-386.86299971,0.00012889,2]
[327531850,1716177638093,-386.86299971,0.00012889,2]
[327531851,1716177638114,-386.86299971,0.00012889,2]
[327531852,1716177638134,-386.86299971,0.00012889,2]
[327531853,1716177638154,-386.86299971,0.00012891,2]
[327531854,1716177638175,-386.86299971,0.00012893,2]
[327531855,1716177638196,-386.86299971,0.00012896,2]
[327531856,1716177638216,-282.9191,0.00012896,2]
[327531857,1716177638237,-500.0,0.00012896,2]
[327531858,1716177638257,-386.86299971,0.00012898,2]
[327531859,1716177638277,-13595.05382387,0.00012899,2]
[327531860,1716177638297,-1896.18152927,0.00012979,2]
[327531861,1716177638317,-73195.1122906,0.0001298,2]
[327531862,1716177638337,-363.39931304,0.0001298,2]
[327531863,1716177638357,-3000.0,0.0001298,2]
[327531864,1716177638378,-657.93582669,0.00012985,2]
[327531865,1716177638398,-930.7902115,0.00012996,2]
[327531866,1716177638420,-264.1652668,0.00012996,2]
[327531867,1716177638441,-2090.9069666,0.00012996,2]
[327531868,1716177638460,-10125.4968175,0.00012996,2]
[327531869,1716177638484,-157.052012,0.00012997,2]
[327531870,1716177638507,-157.052012,0.00012997,2]
[327531871,1716177638528,-157.052012,0.00012997,2]
[327531872,1716177638552,-157.052012,0.00012997,2]
[327531873,1716177638572,-188.22315855,0.00012997,2]
[327531874,1716177638593,-155.33860799,0.00012997,2]
[327531875,1716177638613,-162.55848361,0.00012997,2]
[327531876,1716177638633,-2192.15212442,0.00012997,2]
[327531877,1716177638652,-275.22315385,0.00012997,2]
[327531878,1716177638674,-255.49743644,0.00012997,2]
[327531879,1716177638695,-1063.44051398,0.00012997,2]
[327531880,1716177638715,-4448.54510952,0.00012997,2]
[327531881,1716177638737,-35459.76813892,0.00012997,2]
[327531882,1716177638758,-177.33795565,0.00012997,2]
[327531883,1716177638779,-263.7277,0.00012997,2]
[327531884,1716177638799,-2000.744652,0.00012997,2]
[327531885,1716177638940,-155.45152974,0.00012997,2]
[327531886,1716177638962,-321.30428145,0.00012997,2]
[327531887,1716177638982,-155.35404466,0.00012997,2]
[327531888,1716177639004,-176.02491653,0.00012997,2]
[327531889,1716177639025,-1391.67642576,0.00012997,2]
[327531890,1716177639046,-348.63132743,0.00012997,2]
[327531891,1716177639066,-169.00336876,0.00012997,2]
[327531892,1716177639086,-1086.73140718,0.00012997,2]
[327531893,1716177639107,-168.57104605,0.00012997,2]
[327531894,1716177639130,-488.70573697,0.00012997,2]
[327531895,1716177639152,-1247.15211335,0.00012997,2]
[327531896,1716177639174,-5292.90079509,0.00012997,2]
[327531897,1716177639195,-317.83004084,0.00012998,2]
[327531898,1716177639219,-157.052012,0.00012998,2]
[327531899,1716177639242,-157.052012,0.00012998,2]
[327531900,1716177639265,-157.052012,0.00012998,2]
[327531901,1716177639288,-157.052012,0.00012998,2]
[327531902,1716177639312,-157.052012,0.00012998,2]
[327531903,1716177639335,-157.052012,0.00012998,2]
[327531904,1716177639356,-3632.036,0.00012999,2]
[327531905,1716177639380,-380692.69339766,0.00012999,2]
[327531906,1716177726926,-5563.87798505,0.00010053,2]
[327531907,1716177726949,-551.6548074,0.00010054,2]
[327531908,1716177726970,-5115.3310433,0.00010054,2]
[327531909,1716177726990,-289.81619097,0.00010054,2]
[327531910,1716177727010,-234.06772659,0.00010054,2]
[327531911,1716177727031,-155.92720636,0.00010054,2]
[327531912,1716177737111,-2604.67361667,0.00012739,2]
[327531913,1716177737133,-16974.5912,0.00012799,2]
[327531914,1716177737153,-12656.14528773,0.0001285,2]
[327531915,1716177737174,-3053.8520007,0.00012899,2]
[327531916,1716177737196,-161.17106516,0.00012899,2]
[327531917,1716177737218,-1483.63346546,0.00012899,2]
[327531918,1716177737237,-3053.85200065,0.00012899,2]
[327531919,1716177737259,-3053.85200065,0.00012899,2]
[327531920,1716177737281,-3053.85200065,0.00012899,2]
[327531921,1716177737303,-3053.85200065,0.00012899,2]
[327531922,1716177737324,-3053.85200065,0.000129,2]
[327531923,1716177737347,-3053.85200065,0.000129,2]
[327531924,1716177737368,-386.86299971,0.000129,2]
[327531925,1716177737390,-279.14791875,0.000129,2]
[327531926,1716177737409,-499.99,0.000129,2]
[327531927,1716177737430,-2835.3042025,0.00012996,2]
[327531928,1716177737450,-29986.7009365,0.00012996,2]
[327531929,1716177737472,-6074.3690778,0.00012996,2]
[327531930,1716177737493,-1394.31872609,0.00012997,2]
[327531931,1716177737514,-10962.30845486,0.00012997,2]
[327531932,1716177737534,-190.24964851,0.00012997,2]
[327531933,1716177737555,-19626.96507151,0.00012997,2]
[327531934,1716177737575,-207.02594287,0.00012997,2]
[327531935,1716177737594,-333.97821211,0.00012997,2]
[327531936,1716177737614,-1999.69862257,0.00012997,2]
[327531937,1716177737635,-1805.07007496,0.00012997,2]
[327531938,1716177737656,-317.0267429,0.00012998,2]
[327531939,1716177737676,-550.0,0.00012999,2]
[327531940,1716177737697,-863383.12976907,0.00012999,2]
[327531941,1716177995665,161.06,0.00024329,30]
[327531967,1716178231943,-162.04660562,9.732e-05,2]
[327531968,1716178231953,-234.25383046,9.733e-05,2]
[327531969,1716178231962,-147.79944972,9.734e-05,2]
[327531970,1716178231973,-670.44903517,9.734e-05,2]
[327531971,1716178231983,-447.83,0.0001,2]
[327531972,1716178231992,-250.0,0.00011895,2]
[327531973,1716178232001,-372.8,0.00011952,2]
[327531974,1716178232011,-167.07,0.00011978,2]
[327531975,1716178232020,-164.04010702,0.00012246,2]
[327531976,1716178232031,-447.83,0.00012264,2]
[327531977,1716178232047,-19633.46010502,0.00012345,2]
[327531978,1716178232057,-1169.21760767,0.00012346,2]
[327531979,1716178232066,-1297.77550926,0.00012347,2]
[327531980,1716178232076,-178.4441926,0.00012869,2]
[327531981,1716178232088,-2638.41925,0.0001287,2]
[327531982,1716178232097,-1092.5576,0.00012899,2]
[327531983,1716178232107,-948.3061,0.00012899,2]
[327531984,1716178232117,-785.33012315,0.00012899,2]
[327531985,1716178232127,-916.15560024,0.00012899,2]
[327531986,1716178232136,-785.33012306,0.00012899,2]
[327531987,1716178232146,-916.15560019,0.00012899,2]
[327531988,1716178232155,-785.33012306,0.00012899,2]
[327531989,1716178232165,-916.15560019,0.00012899,2]
[327531990,1716178232174,-785.33012306,0.00012899,2]
[327531991,1716178232183,-916.15560019,0.00012899,2]
[327531992,1716178232192,-785.33012306,0.00012899,2]
[327531993,1716178232202,-916.15560019,0.00012899,2]
[327531994,1716178232211,-785.33012306,0.00012899,2]
[327531995,1716178232220,-785.33012306,0.000129,2]
[327531996,1716178232230,-916.15560019,0.000129,2]
[327531997,1716178232239,-3706.1,0.000129,2]
[327531998,1716178232249,-785.33012306,0.000129,2]
[327531999,1716178232258,-916.15560019,0.000129,2]
[327532000,1716178232267,-785.33012306,0.000129,2]
[327532001,1716178232277,-916.15560019,0.000129,2]
[327532002,1716178232287,-785.33012306,0.000129,2]
[327532003,1716178232296,-916.15560019,0.000129,2]
[327532004,1716178232306,-785.33012306,0.000129,2]
[327532005,1716178232315,-785.33012306,0.000129,2]
[327532006,1716178232325,-430.25793379,0.000129,2]
[327532007,1716178232334,-174.96101366,0.000129,2]
[327532008,1716178232343,-174.96101366,0.000129,2]
[327532009,1716178232352,-174.96101366,0.000129,2]
[327532010,1716178232362,-182.60995992,0.000129,2]
[327532011,1716178232371,-2967.26693092,0.000129,2]
[327532012,1716178232379,-916.15560019,0.000129,2]
[327532013,1716178232391,-170.42745764,0.00012989,2]
[327532014,1716178232400,-181.4,0.0001299,2]
[327532015,1716178232409,-181.4,0.0001299,2]
[327532016,1716178232418,-8113.2230833,0.00012996,2]
[327532017,1716178232428,-23512.1967902,0.00012996,2]
[327532018,1716178232436,-4762.8367467,0.00012996,2]
[327532019,1716178232446,-2233.6502049,0.00012996,2]
[327532020,1716178232455,-2738.0971023,0.00012996,2]
[327532021,1716178232463,-936.22696761,0.00012997,2]
[327532022,1716178232473,-10934.65564137,0.00012997,2]
[327532023,1716178232482,-319.07658176,0.00012997,2]
[327532024,1716178232491,-838.65700533,0.00012997,2]
[327532025,1716178232500,-525.17743419,0.00012997,2]
[327532026,1716178232509,-2110.12969241,0.00012997,2]
[327532027,1716178232518,-199.63052937,0.00012997,2]
[327532028,1716178232527,-1000.0,0.00012997,2]
[327532029,1716178232536,-155.24315078,0.00012997,2]
[327532030,1716178232545,-157.16032683,0.00012997,2]
[327532031,1716178232554,-622.9323276,0.00012997,2]
[327532032,1716178232563,-155.42860413,0.00012997,2]
[327532033,1716178232573,-298.26311554,0.00012997,2]
[327532034,1716178232583,-847.66957593,0.00012997,2]
[327532035,1716178232592,-275.81327066,0.00012997,2]
[327532036,1716178232602,-300.41185003,0.00012997,2]
[327532037,1716178232611,-155.32039272,0.00012997,2]
[327532038,1716178232620,-3008.23651126,0.00012998,2]
[327532039,1716178232629,-155.0,0.00012998,2]
[327532040,1716178232640,-557.0,0.00012999,2]
[327532041,1716178232649,-83776.58293098,0.00012999,2]
[327532042,1716178233247,-626.71201654,0.00012999,2]
[327532043,1716178233259,-346.48303694,0.00012999,2]
[327532044,1716178233274,-781.95019923,0.00012999,2]
[327532045,1716178233285,-2130.44985288,0.00012999,2]
[327532046,1716178233296,-827.13712285,0.00012999,2]
[327532047,1716178233307,-16683.0,0.00012999,2]
[327532048,1716178233318,-667.36237526,0.00012999,2]
[327532049,1716178233329,-896.99068152,0.00012999,2]
[327532050,1716178233344,-7966.72183934,0.00012999,2]
[327532051,1716178233355,-273754.55936666,0.00012999,2]
[327532052,1716178233384,-181139.78594112,0.00012999,2]
[327532053,1716178233397,-18266.78652647,0.00012999,2]
[327532054,1716178233408,-418.90217464,0.00012999,2]
[327532055,1716178233419,-259.86200001,0.00012999,2]
[327532056,1716178233430,-357.4799971,0.00012999,2]
[327532057,1716178233445,-6370.88873846,0.00012999,2]
[327532059,1716178237937,-412.70745683,0.00012899,2]
[327532060,1716178237947,-422.40964769,0.00012999,2]
[327532061,1716178237958,-83.59035231,0.00012999,2]
[327532062,1716178237967,-28072.59785694,0.00012999,2]
[327532063,1716178237992,-946.67592046,0.00012999,2]
[327532064,1716178238054,-351.13088306,0.00012999,2]
[327532065,1716178238110,-439.45564214,0.00012999,2]
[327532066,1716178238165,-84733.83947095,0.00012999,2]
[327532067,1716178238222,-22600.73530121,0.00012999,2]
[327532068,1716178238233,-780.96879414,0.00012999,2]
[327532069,1716178238278,-6628.30439943,0.00012999,2]
[327532077,1716178239966,-928.92000001,0.00012999,2]
[327532083,1716178241716,-31514.20331012,0.00012999,2]
[327532090,1716178243044,-345.78,0.00012899,2]
[327532091,1716178243097,-66.92745683,0.00012899,2]
[327532092,1716178243110,-376476.47850344,0.00012999,2]
[327532093,1716178243129,-82322.79738652,0.00012999,2]
[327532094,1716178243208,-4224.01769722,0.00012999,2]
[327532096,1716178243900,-1700.0,0.00012999,2]
[327532097,1716178243912,-11564.71894032,0.00012999,2]
[327532099,1716178245887,-412.70745683,0.00012899,2]
[327532100,1716178245896,-14581.61137982,0.00012999,2]
[327532101,1716178245908,-3135.4164867,0.00012999,2]
[327532102,1716178245942,-585.35274278,0.00012999,2]
[327532103,1716178246058,-1108.82174182,0.00012999,2]
[327532104,1716178246069,-526.995,0.00012999,2]
[327532105,1716178246119,-28944.85528841,0.00012999,2]
[327532106,1716178246132,-66095.26676568,0.00012999,2]
[327532107,1716178246178,-1685.74313392,0.00012999,2]
[327532108,1716178338870,-3090.21232745,9.748e-05,2]
[327532109,1716178348860,17000.0,9.747e-05,2]
[327532110,1716178359438,-2495.88921672,9.747e-05,2]
[327532111,1716178381995,1294.32311073,9.747e-05,2]
[327532112,1716178479685,161.2,0.00024329,30]
[327532113,1716178614163,150.0,5e-05,2]
[327532114,1716178614187,20.90144443,5e-05,2]
[327532115,1716178615566,-287.28304969,7.309e-05,2]
[327532116,1716178970530,161.2,0.00024329,30]
[327532117,1716179143641,-818.24848489,5.475e-05,2]
[327532118,1716179143674,-501.50303022,5.476e-05,2]
[327532119,1716179143714,-360.49696978,5.476e-05,2]
[327532120,1716179143723,-457.75151511,5.478e-05,2]
[327532121,1716179143738,-600.88475315,5.478e-05,2]
[327532122,1716179143746,-150.0,7.308e-05,2]
[327532123,1716179143755,-111.11524685,9.944e-05,2]
[327532143,1716179432521,-150.0,7.455e-05,2]
[327532144,1716179432530,-334.28691844,7.456e-05,2]
[327532145,1716179432559,-4006.77558345,7.456e-05,2]
[327532146,1716179432571,-15706.56316467,7.456e-05,2]
[327532147,1716179432581,-2547.86451751,7.458e-05,2]
[327532148,1716179432590,-210.0,8.201e-05,2]
[327532149,1716179432599,-2237.11604471,9.942e-05,2]
[327532150,1716179432608,-2701.72426751,9.942e-05,2]
[327532151,1716179432617,-560.8967205,9.944e-05,2]
[327532152,1716179432626,-20219.84291804,9.944e-05,2]
[327532153,1716179432635,-346.28428884,9.944e-05,2]
[327532154,1716179432644,-362.16409873,9.944e-05,2]
[327532155,1716179432653,-1360.30965247,9.944e-05,2]
[327532156,1716179432662,-173.51087384,9.944e-05,2]
[327532157,1716179432671,-673.3675479,9.944e-05,2]
[327532158,1716179432682,-19730.16017374,9.944e-05,2]
[327532159,1716179432691,-155.0,9.944e-05,2]
[327532160,1716179432700,-106005.28668569,9.944e-05,2]
[327532161,1716179432712,-54101.60243352,9.944e-05,2]
[327532162,1716179432749,-482.87677638,9.944e-05,2]
[327532163,1716179432760,-559.18577829,9.944e-05,2]
[327532169,1716179438222,-21144.08965766,9.944e-05,2]
[327532179,1716179438969,-659.10473053,9.944e-05,2]
[327532180,1716179439592,-955.63540214,9.944e-05,2]
[327532183,1716179440403,-22706.24421032,9.944e-05,2]
[327532184,1716179440414,-2433.6940233,9.944e-05,2]
[327532185,1716179440426,-669.3090582,9.944e-05,2]
[327532186,1716179440514,-587.38121662,9.944e-05,2]
[327532187,1716179440597,-3397.90380367,9.944e-05,2]
[327532188,1716179440609,-552.82918961,9.944e-05,2]
[327532193,1716179440887,-74650.15000666,9.944e-05,2]
[327532194,1716179441163,-185.9,9.944e-05,2]
[327532201,1716179443393,-2992.66047825,9.944e-05,2]
[327532202,1716179443404,-744.5,9.944e-05,2]
[327532203,1716179443419,-4149.46000906,9.944e-05,2]
[327532204,1716179443502,-514.01,9.944e-05,2]
[327532205,1716179443575,-302.0,9.944e-05,2]
[327532206,1716179443590,-263.95605343,9.944e-05,2]
[327532207,1716179443602,-300.0,9.944e-05,2]
[327532208,1716179443647,-931.14427352,9.944e-05,2]
[327532209,1716179443716,-3224.73762716,9.944e-05,2]
[327532220,1716179445823,161.2,0.00024329,30]
[327532221,1716179446090,-103244.04553468,9.944e-05,2]
[327532222,1716179446213,-338.43840616,9.944e-05,2]
[327532223,1716179446300,-1310.91795577,9.944e-05,2]
[327532224,1716179446347,-5237.41258553,9.944e-05,2]
[327532225,1716179446359,-3514.29202199,9.944e-05,2]
[327532226,1716179446387,-7039.04789997,9.944e-05,2]
[327532227,1716179446398,-911.75364664,9.944e-05,2]
[327532228,1716179446420,-41068.81970123,9.944e-05,2]
[327532229,1716179446431,-51544.63695263,9.944e-05,2]
[327532233,1716179698998,362.49,0.0003,120]
[327532245,1716180023136,161.2,0.00024329,30]
[327532258,1716180484665,161.2,0.00024329,30]
[327532287,1716180632257,-529.1898528,7.372e-05,2]
[327532288,1716180632267,-155.0,7.372e-05,2]
[327532289,1716180632276,-237.33067937,7.373e-05,2]
[327532290,1716180632286,-176.60280925,7.373e-05,2]
[327532292,1716180632295,-155.0,7.373e-05,2]
[327532294,1716180632304,-866.81099653,7.373e-05,2]
[327532296,1716180632314,-155.0,7.374e-05,2]
[327532297,1716180632323,-302.67036282,7.375e-05,2]
[327532298,1716180632332,-2860.78909521,7.378e-05,2]
[327532299,1716180632344,-16635.10012151,7.378e-05,2]
[327532300,1716180632353,-2004.95025511,7.382e-05,2]
[327532301,1716180632362,-360.0,7.385e-05,2]
[327532302,1716180632371,-150.0,7.385e-05,2]
[327532303,1716180632380,-150.0,7.397e-05,2]
[327532304,1716180632390,-210.0,8.124e-05,2]
[327532305,1716180632400,-557.17,8.457e-05,2]
[327532306,1716180632410,-293.0,8.936e-05,2]
[327532307,1716180632419,-301.02158227,9e-05,2]
[327532308,1716180632429,-701.76,9.649e-05,2]
[327532309,1716180632438,-499.99,9.67e-05,2]
[327532310,1716180632447,-2686.48,9.67e-05,2]
[327532311,1716180632456,-722.48,9.67e-05,2]
[327532312,1716180632468,-1338.49,9.67e-05,2]
[327532313,1716180632477,-2104.13,9.67e-05,2]
[327532314,1716180632486,-150.99,9.67e-05,2]
[327532315,1716180632495,-10494.23,9.67e-05,2]
[327532316,1716180632504,-2385.4,9.688e-05,2]
[327532317,1716180632514,-250.0,9.721e-05,2]
[327532318,1716180632524,-508.98,9.723e-05,2]
[327532319,1716180632533,-200.0,9.738e-05,2]
[327532320,1716180632542,-151.22,9.752e-05,2]
[327532321,1716180632552,-963.55,9.755e-05,2]
[327532322,1716180632561,-1852.42,9.762e-05,2]
[327532323,1716180632571,-225.88,9.804e-05,2]
[327532324,1716180632580,-219.0,9.83e-05,2]
[327532325,1716180632590,-1000.0,0.0001,2]
[327532326,1716180632600,-2348.05231,0.0001,2]
[327532327,1716180632609,-2525.83,0.00010324,2]
[327532328,1716180632618,-2525.83,0.00010327,2]
[327532329,1716180632627,-2525.83,0.00010329,2]
[327532331,1716180632637,-2525.83,0.00010332,2]
[327532332,1716180632646,-2525.83,0.00010335,2]
[327532334,1716180632655,-2525.83,0.00010337,2]
[327532336,1716180632664,-2525.83,0.0001034,2]
[327532337,1716180632673,-2525.83,0.00010343,2]
[327532338,1716180632682,-2525.83,0.00010346,2]
[327532339,1716180632691,-2525.83,0.00010348,2]
[327532340,1716180632700,-2525.83,0.00010351,2]
[327532341,1716180632710,-2525.83,0.00010354,2]
[327532342,1716180632719,-2525.83,0.00010356,2]
[327532343,1716180632729,-2525.83,0.00010359,2]
[327532344,1716180632739,-2525.83,0.00010362,2]
[327532345,1716180632749,-2525.83,0.00010365,2]
[327532347,1716180632759,-2525.83,0.00010367,2]
[327532349,1716180632767,-2525.83,0.0001037,2]
[327532351,1716180632776,-2525.83,0.00010373,2]
[327532353,1716180632786,-2893.59,0.00010375,2]
[327532354,1716180632795,-2525.83,0.00010375,2]
[327532356,1716180632804,-23890.0,0.00010437,2]
[327532359,1716180632813,-298.24,0.00010445,2]
[327532361,1716180632823,-250.0,0.00010477,2]
[327532363,1716180632832,-275.18,0.00010646,2]
[327532365,1716180632842,-275.18,0.00010675,2]
[327532366,1716180632851,-275.18,0.00010705,2]
[327532369,1716180632861,-557.17,0.00010721,2]
[327532370,1716180632873,-275.18,0.00010734,2]
[327532372,1716180632882,-275.18,0.00010763,2]
[327532374,1716180632891,-275.18,0.00010792,2]
[327532375,1716180632900,-275.18,0.00010821,2]
[327532376,1716180632910,-275.18,0.00010851,2]
[327532377,1716180632920,-701.76,0.00010855,2]
[327532378,1716180632929,-275.18,0.0001088,2]
[327532379,1716180632939,-275.18,0.00010909,2]
[327532380,1716180632950,-41864.094,0.00010938,2]
[327532381,1716180632960,-275.18,0.00010938,2]
[327532382,1716180632969,-1564.60657979,0.00010949,2]
[327532383,1716180632981,-1373.64,0.00010959,2]
[327532384,1716180632991,-784.88,0.00010959,2]
[327532385,1716180633000,-236.34,0.00010959,2]
[327532386,1716180633009,-150.0,0.00010959,2]
[327532387,1716180633018,-177.31,0.0001096,2]
[327532388,1716180633029,-275.18,0.00010967,2]
[327532389,1716180633040,-275.18,0.00010997,2]
[327532390,1716180633056,-1000.0,0.00011,2]
[327532391,1716180633069,-275.18,0.00011026,2]
[327532392,1716180633079,-275.18,0.00011055,2]
[327532393,1716180633088,-800.0,0.00011068,2]
[327532394,1716180633099,-275.18,0.00011084,2]
[327532395,1716180633109,-9999.99,0.0001109,2]
[327532396,1716180633118,-275.18,0.00011113,2]
[327532397,1716180633128,-275.18,0.00011143,2]
[327532398,1716180633137,-275.18,0.00011172,2]
[327532399,1716180633147,-275.18,0.00011201,2]
[327532400,1716180633156,-150.46,0.00011443,2]
[327532401,1716180633167,-150.46,0.00011447,2]
[327532402,1716180633176,-150.46,0.00011452,2]
[327532403,1716180633186,-150.46,0.00011456,2]
[327532404,1716180633195,-150.46,0.0001146,2]
[327532405,1716180633205,-150.46,0.00011465,2]
[327532406,1716180633216,-150.46,0.00011469,2]
[327532407,1716180633225,-150.46,0.00011474,2]
[327532408,1716180633234,-150.46,0.00011478,2]
[327532409,1716180633243,-150.46,0.00011482,2]
[327532410,1716180633253,-150.46,0.00011487,2]
[327532411,1716180633262,-150.46,0.00011491,2]
[327532412,1716180633272,-150.46,0.00011496,2]
[327532413,1716180633281,-150.46,0.000115,2]
[327532414,1716180633291,-167.34,0.00011561,2]
[327532415,1716180633300,-205.26,0.00011612,2]
[327532416,1716180633309,-17586.60086623,0.00011667,2]
[327532417,1716180633319,-750.94633531,0.00011698,2]
[327532418,1716180633328,-285.90804803,0.00011698,2]
[327532419,1716180633338,-298.24,0.00011751,2]
[327532420,1716180633347,-8151.94993136,0.000118,2]
[327532421,1716180633357,-1000.0,0.00012,2]
[327532422,1716180633367,-182.17,0.00012033,2]
[327532423,1716180633376,-701.76,0.00012061,2]
[327532424,1716180633387,-1421.85321099,0.00012099,2]
[327532425,1716180633398,-400.0,0.000121,4]
[327532426,1716180633408,-900.0,0.000122,4]
[327532427,1716180633419,-1300.0,0.000123,4]
[327532428,1716180633428,-182.93157257,0.00012348,2]
[327532429,1716180633606,-1800.0,0.000124,4]
[327532430,1716180633615,-2385.4,0.00012428,2]
[327532431,1716180633625,-2200.0,0.000125,4]
[327532432,1716180633635,-400.0,0.000126,4]
[327532433,1716180633644,-400.0,0.000127,4]
[327532434,1716180633653,-177.31,0.00012787,2]
[327532435,1716180633663,-621.1765,0.000128,2]
[327532436,1716180633672,-400.0,0.000128,4]
[327532437,1716180633682,-178.44419261,0.00012869,2]
[327532438,1716180633691,-60668.8474585,0.00012886,2]
[327532439,1716180633701,-550.02774465,0.00012889,2]
[327532440,1716180633711,-550.02774458,0.00012889,2]
[327532441,1716180633720,-550.02774458,0.00012889,2]
[327532442,1716180633729,-550.02774458,0.00012889,2]
[327532443,1716180633738,-550.02774458,0.00012889,2]
[327532444,1716180633747,-550.02774458,0.00012889,2]
[327532445,1716180633757,-550.02774458,0.00012889,2]
[327532446,1716180633766,-550.02774458,0.00012889,2]
[327532447,1716180633775,-550.02774458,0.00012889,2]
[327532448,1716180633785,-200.0,0.00012894,2]
[327532449,1716180633795,-1000.0,0.00012894,2]
[327532450,1716180633804,-500.0,0.00012894,2]